fUSD/lending_fUSD_20250124
["ID","MTS","AMOUNT","RATE_DAILY","PERIOD"]
[350259335,1737746072579,-500.0,0.00019879,2]
[350259336,1737746072601,-1633.79,0.00019879,2]
[350259337,1737746072623,-500.0,0.00019879,2]
[350259338,1737746072645,-1198.91,0.00019879,2]
[350259339,1737746072666,-500.0,0.00019879,2]
[350259340,1737746072687,-500.0,0.00019879,2]
[350259341,1737746072708,-500.0,0.00019879,2]
[350259342,1737746072729,-500.0,0.00019879,2]
[350259343,1737746072750,-500.0,0.00019879,2]
[350259344,1737746072771,-500.0,0.00019879,2]
[350259345,1737746072792,-500.0,0.00019879,2]
[350259346,1737746072812,-500.0,0.00019879,2]
[350259347,1737746072833,-1018.04,0.00019879,2]
[350259348,1737746072854,-500.0,0.00019879,2]
[350259349,1737746072875,-500.0,0.00019879,2]
[350259350,1737746072896,-500.0,0.00019879,2]
[350259351,1737746072916,-500.0,0.00019879,2]
[350259352,1737746072936,-500.0,0.00019879,2]
[350259353,1737746072957,-500.0,0.00019879,2]
[350259354,1737746072979,-500.0,0.00019879,2]
[350259355,1737746073000,-500.0,0.00019879,2]
[350259356,1737746073024,-500.0,0.00019879,2]
[350259357,1737746073048,-500.0,0.00019879,2]
[350259358,1737746073072,-500.0,0.00019879,2]
[350259359,1737746073094,-500.0,0.00019879,2]
[350259360,1737746073116,-500.0,0.00019879,2]
[350259361,1737746073139,-500.0,0.00019879,2]
[350259362,1737746073163,-500.0,0.00019879,2]
[350259363,1737746073186,-849.41,0.00019879,2]
[350259364,1737746073381,-500.0,0.00019879,2]
[350259365,1737746073406,-500.0,0.00019879,2]
[350259366,1737746073429,-500.0,0.00019879,2]
[350259367,1737746073456,-500.0,0.00019879,2]
[350259368,1737746073479,-500.0,0.00019879,2]
[350259369,1737746073502,-500.0,0.00019879,2]
[350259370,1737746073526,-500.0,0.00019879,2]
[350259371,1737746073550,-500.0,0.00019879,2]
[350259372,1737746073573,-500.0,0.00019879,2]
[350259373,1737746073595,-500.0,0.00019879,2]
[350259374,1737746073619,-500.0,0.00019879,2]
[350259375,1737746073642,-500.0,0.00019879,2]
[350259376,1737746073664,-500.0,0.00019879,2]
[350259377,1737746073688,-500.0,0.00019879,2]
[350259378,1737746073711,-500.0,0.00019879,2]
[350259379,1737746073735,-500.0,0.00019879,2]
[350259380,1737746073760,-500.0,0.00019879,2]
[350259381,1737746073786,-500.0,0.00019879,2]
[350259382,1737746073809,-252.67681607,0.0001988,2]
[350259383,1737746073832,-12472.38794686,0.0001988,2]
[350259387,1737746754790,1381.45902015,0.0002,60]
[350259390,1737746888691,163.64,0.00010137,2]
[350259396,1737746952148,-237.22,0.00012329,2]
[350259397,1737746952174,-300.0,0.0001478,2]
[350259398,1737746952196,-14271.4997007,0.00014781,7]
[350259399,1737746952218,-550.0,0.00015,2]
[350259400,1737746952238,-190.11,0.0001502,2]
[350259401,1737746952260,-5556.0,0.000154,5]
[350259402,1737746952282,-420.0,0.00016179,2]
[350259403,1737746952306,-600.0,0.00017,2]
[350259404,1737746952327,-1545.67625028,0.00017526,2]
[350259405,1737746952348,-1545.67625029,0.00017526,2]
[350259406,1737746952368,-158.21,0.00017998,2]
[350259407,1737746952388,-1250.925,0.00017998,2]
[350259408,1737746952407,-1169.30415815,0.00018,3]
[350259409,1737746952428,-8920.30495095,0.00018,3]
[350259410,1737746952448,-4556.20960963,0.00018,3]
[350259411,1737746958114,-2828.51421431,0.00018,3]
[350259412,1737746983248,524.01,0.00016828,2]
[350259423,1737747031772,-1100.64517333,0.000181,2]
[350259424,1737747031782,-500.0,0.0001821,2]
[350259425,1737747031791,-66309.31167174,0.0001848,2]
[350259426,1737747031803,-72.23485675,0.0001849,2]
[350259465,1737747033002,-298.20514325,0.0001849,2]
[350259467,1737747033013,-149.93460717,0.00018543,2]
[350259470,1737747033029,-100.06539283,0.00018543,2]
[350259472,1737747033042,-460.49,0.00018644,2]
[350259474,1737747033055,-13.13460717,0.00018805,2]
[350259475,1737747033071,-1651.84539283,0.00018805,2]
[350259476,1737747033083,-156.57,0.00018809,30]
[350259478,1737747033092,-250.0,0.00018821,2]
[350259480,1737747033103,-250.0,0.0001893,2]
[350259482,1737747033114,-263.26,0.00018965,2]
[350259484,1737747033125,-500.0,0.00018986,2]
[350259486,1737747033140,-1000.0,0.00018991,2]
[350259488,1737747033153,-1655.35279673,0.00018997,2]
[350259489,1737747033164,-524.01,0.00019092,2]
[350259490,1737747033174,-2138.95,0.00019178,2]
[350259491,1737747033184,-1749.0,0.000192,2]
[350259492,1737747033195,-216.72181044,0.000194,2]
[350259493,1737747033236,-396.17818956,0.000194,2]
[350259494,1737747033247,-747.69348889,0.000197,2]
[350259501,1737747037800,-252.30651111,0.000197,2]
[350259502,1737747037811,-240.04297539,0.00019779,2]
[350259503,1737747037820,-13000.7748,0.0001978,2]
[350259504,1737747037830,-1755.09869579,0.0001978,2]
[350259505,1737747037856,-1547.24218321,0.0001978,2]
[350259506,1737747037869,-1873.66228,0.0001978,2]
[350259507,1737747037878,-189.02621024,0.0001978,2]
[350259508,1737747037888,-150.0,0.00019792,2]
[350259509,1737747037898,-4899.08796291,0.000198,2]
[350259510,1737747037907,-1000.0,0.000198,2]
[350259511,1737747037917,-150.0,0.00019801,2]
[350259512,1737747037926,-240.04297522,0.00019835,2]
[350259513,1737747037936,-341.1918,0.00019879,2]
[350259514,1737747037946,-500.0,0.00019879,2]
[350259515,1737747037956,-500.0,0.00019879,2]
[350259516,1737747037966,-503.02184082,0.00019879,2]
[350259517,1737747037975,-364.34056937,0.00019879,2]
[350259518,1737747037985,-500.0,0.00019879,2]
[350259519,1737747037996,-500.0,0.00019879,2]
[350259520,1737747038005,-500.0,0.00019879,2]
[350259521,1737747038015,-500.0,0.00019879,2]
[350259522,1737747038024,-500.0,0.00019879,2]
[350259523,1737747038033,-500.0,0.00019879,2]
[350259524,1737747038042,-500.0,0.00019879,2]
[350259525,1737747038051,-500.0,0.00019879,2]
[350259526,1737747038061,-500.0,0.00019879,2]
[350259527,1737747038070,-500.0,0.00019879,2]
[350259528,1737747038079,-500.0,0.00019879,2]
[350259529,1737747038088,-500.0,0.00019879,2]
[350259530,1737747038098,-501.30955774,0.00019879,2]
[350259531,1737747038110,-500.0,0.00019879,2]
[350259532,1737747038119,-500.0,0.00019879,2]
[350259533,1737747038129,-500.0,0.00019879,2]
[350259534,1737747038138,-500.0,0.00019879,2]
[350259535,1737747038148,-459.90529335,0.00019879,2]
[350259536,1737747038157,-500.0,0.00019879,2]
[350259537,1737747038166,-500.0,0.00019879,2]
[350259538,1737747038175,-500.0,0.00019879,2]
[350259539,1737747038184,-500.0,0.00019879,2]
[350259540,1737747038194,-500.0,0.00019879,2]
[350259541,1737747038203,-500.0,0.00019879,2]
[350259542,1737747038212,-500.0,0.00019879,2]
[350259543,1737747038222,-500.0,0.00019879,2]
[350259544,1737747038231,-500.0,0.00019879,2]
[350259545,1737747038240,-500.0,0.00019879,2]
[350259546,1737747038250,-500.0,0.00019879,2]
[350259547,1737747038259,-500.0,0.00019879,2]
[350259548,1737747038268,-397.33683613,0.00019879,2]
[350259549,1737747038277,-514.87249543,0.00019879,2]
[350259550,1737747038287,-500.0,0.00019879,2]
[350259551,1737747038296,-500.0,0.00019879,2]
[350259552,1737747038306,-500.0,0.00019879,2]
[350259553,1737747038315,-500.0,0.00019879,2]
[350259554,1737747038325,-500.0,0.00019879,2]
[350259555,1737747038334,-500.0,0.00019879,2]
[350259556,1737747038343,-500.0,0.00019879,2]
[350259557,1737747038352,-500.0,0.00019879,2]
[350259558,1737747038365,-500.0,0.00019879,2]
[350259559,1737747038374,-500.0,0.00019879,2]
[350259560,1737747038383,-500.0,0.00019879,2]
[350259561,1737747038392,-500.0,0.00019879,2]
[350259562,1737747038401,-500.0,0.00019879,2]
[350259563,1737747038411,-500.0,0.00019879,2]
[350259564,1737747038420,-500.0,0.00019879,2]
[350259565,1737747038430,-500.0,0.00019879,2]
[350259566,1737747038439,-500.0,0.00019879,2]
[350259567,1737747038449,-500.0,0.00019879,2]
[350259568,1737747038458,-500.0,0.00019879,2]
[350259569,1737747038467,-500.0,0.00019879,2]
[350259570,1737747038476,-500.0,0.00019879,2]
[350259571,1737747038485,-500.0,0.00019879,2]
[350259573,1737747038494,-500.0,0.00019879,2]
[350259575,1737747038503,-500.0,0.00019879,2]
[350259578,1737747038519,-500.0,0.00019879,2]
[350259579,1737747038528,-217.87054665,0.00019879,2]
[350259581,1737747038537,-500.0,0.00019879,2]
[350259584,1737747038547,-500.0,0.00019879,2]
[350259585,1737747038556,-500.0,0.00019879,2]
[350259588,1737747038565,-500.0,0.00019879,2]
[350259589,1737747038576,-500.0,0.00019879,2]
[350259591,1737747038585,-500.0,0.00019879,2]
[350259593,1737747038596,-500.0,0.00019879,2]
[350259595,1737747038606,-500.0,0.00019879,2]
[350259597,1737747038618,-500.0,0.00019879,2]
[350259599,1737747038628,-500.0,0.00019879,2]
[350259601,1737747038637,-500.0,0.00019879,2]
[350259603,1737747038646,-500.0,0.00019879,2]
[350259605,1737747038655,-500.0,0.00019879,2]
[350259607,1737747038664,-500.0,0.00019879,2]
[350259609,1737747038674,-500.0,0.00019879,2]
[350259611,1737747038683,-179.51491132,0.00019879,2]
[350259613,1737747038692,-500.0,0.00019879,2]
[350259615,1737747038701,-734.49,0.00019879,2]
[350259617,1737747038710,-500.0,0.00019879,2]
[350259619,1737747038721,-500.0,0.00019879,2]
[350259621,1737747038734,-500.0,0.00019879,2]
[350259623,1737747038746,-613.13,0.00019879,2]
[350259625,1737747038755,-490.85529522,0.00019879,2]
[350259627,1737747038769,-9.14470478,0.00019879,2]
[350259629,1737747038778,-361.57895279,0.00019879,2]
[350259656,1737747039770,-150.0,0.00019772,2]
[350259657,1737747039781,-357.5647266,0.0001978,2]
[350259658,1737747039792,-2087.91498332,0.0001978,2]
[350259659,1737747039987,-1961.56794,0.0001978,2]
[350259660,1737747040047,-592.95235008,0.0001978,2]
[350259661,1737747040056,-150.0,0.0001978,2]
[350259662,1737747040065,-138.42104721,0.00019879,2]
[350259663,1737747040075,-180.02660271,0.00019879,2]
[350259664,1737747040096,-150.0,0.00019747,2]
[350259665,1737747040106,-319.97339729,0.00019879,2]
[350259666,1737747040117,-500.0,0.00019879,2]
[350259667,1737747040126,-500.0,0.00019879,2]
[350259668,1737747040136,-500.0,0.00019879,2]
[350259669,1737747040145,-500.0,0.00019879,2]
[350259670,1737747040154,-705.93,0.00019879,2]
[350259671,1737747040165,-500.0,0.00019879,2]
[350259672,1737747040175,-500.0,0.00019879,2]
[350259673,1737747040184,-1053.5,0.00019879,2]
[350259674,1737747040193,-500.0,0.00019879,2]
[350259675,1737747040203,-500.0,0.00019879,2]
[350259676,1737747040213,-500.0,0.00019879,2]
[350259677,1737747040223,-500.0,0.00019879,2]
[350259678,1737747040233,-500.0,0.00019879,2]
[350259679,1737747040243,-500.0,0.00019879,2]
[350259680,1737747040253,-1250.97,0.00019879,2]
[350259681,1737747040263,-500.0,0.00019879,2]
[350259682,1737747040272,-500.0,0.00019879,2]
[350259683,1737747040281,-500.0,0.00019879,2]
[350259684,1737747040290,-390.5,0.00019879,2]
[350259685,1737747040300,-500.0,0.00019879,2]
[350259686,1737747040309,-500.0,0.00019879,2]
[350259687,1737747040319,-500.0,0.00019879,2]
[350259688,1737747040328,-502.70990708,0.00019879,2]
[350259689,1737747040337,-500.0,0.00019879,2]
[350259690,1737747040346,-500.0,0.00019879,2]
[350259691,1737747040355,-500.0,0.00019879,2]
[350259692,1737747040367,-231.12833825,0.00019879,2]
[350259693,1737747040377,-500.0,0.00019879,2]
[350259694,1737747040387,-714.99,0.00019879,2]
[350259695,1737747040399,-500.0,0.00019879,2]
[350259696,1737747040410,-500.0,0.00019879,2]
[350259697,1737747040419,-500.0,0.00019879,2]
[350259698,1737747040429,-500.0,0.00019879,2]
[350259699,1737747040439,-500.0,0.00019879,2]
[350259700,1737747040448,-500.0,0.00019879,2]
[350259701,1737747040458,-500.0,0.00019879,2]
[350259702,1737747040468,-500.0,0.00019879,2]
[350259703,1737747040478,-500.0,0.00019879,2]
[350259704,1737747040488,-303.04246295,0.0001988,2]
[350259724,1737747042691,-3989.94909019,0.0001988,2]
[350259725,1737747042701,-336.04561927,0.0001988,2]
[350259751,1737747043007,-1039.491424,0.0001988,2]
[350259781,1737747045738,-500.0,0.00019879,2]
[350259782,1737747045748,-743.62,0.00019879,2]
[350259783,1737747045757,-330.980427,0.00019879,2]
[350259784,1737747045767,-4524.44855673,0.0001988,2]
[350259785,1737747045777,-4498.95101627,0.0001988,2]
[350259786,1737747045901,-821.57823129,0.0001988,2]
[350259787,1737747046063,-2380.10749,0.0001988,2]
[350259800,1737747944283,-1638.0,0.000142,5]
[350259801,1737747944304,-1852.42,0.00018413,2]
[350259802,1737747944489,-7814.49,0.00018477,2]
[350259803,1737747944511,-4023.58,0.00018487,2]
[350259804,1737747944532,-1656.72296419,0.00018553,2]
[350259805,1737747998935,150.0,0.000125,2]
[350259806,1737748025099,-243.66,0.00018487,2]
[350259807,1737748025124,-415.61217356,0.00018553,2]
[350259809,1737748153116,-590.95,0.00016641,2]
[350259825,1737748231901,-1000.0,0.00018146,2]
[350259826,1737748231911,-200.0,0.00018397,2]
[350259827,1737748231926,-1948.97995,0.000184,2]
[350259828,1737748231954,-8310.43159216,0.000184,2]
[350259829,1737748231963,-250.0,0.00018422,2]
[350259830,1737748231973,-733.16,0.00018508,2]
[350259831,1737748231982,-21827.66486225,0.00018553,2]
[350259832,1737748231991,-436.81,0.00018559,2]
[350259833,1737748232000,-21537.26,0.00018569,2]
[350259834,1737748232010,-156.57,0.00018655,30]
[350259835,1737748232020,-5224.66,0.00018664,2]
[350259836,1737748232029,-176.61,0.00018717,2]
[350259837,1737748232038,-150.0,0.0001876,2]
[350259838,1737748232047,-250.0,0.00018816,2]
[350259839,1737748232057,-828.55,0.00018853,2]
[350259840,1737748232066,-250.0,0.00018858,2]
[350259841,1737748232076,-590.95,0.00018905,2]
[350259842,1737748232088,-245.16,0.00018971,2]
[350259843,1737748232098,-252.75,0.00018971,2]
[350259844,1737748232107,-500.0,0.00018986,2]
[350259845,1737748232117,-248.53,0.00018993,2]
[350259846,1737748232127,-254.59,0.00018993,2]
[350259847,1737748232136,-267.65745049,0.00019,2]
[350259848,1737748232145,-144090.4426109,0.00019,2]
[350259849,1737748232155,-364061.89902959,0.00019,2]
[350259850,1737748232171,-261.0,0.00019,2]
[350259851,1737748232215,-4852.55653014,0.00019,2]
[350259852,1737748232373,-412.03036244,0.00019,2]
[350259853,1737748232385,-1234.99999991,0.00019,2]
[350259854,1737748232395,-1530.21449066,0.00019,2]
[350260237,1737748237998,-21124.52588172,0.00019,2]
[350260238,1737748238053,-3258.53319495,0.00019,2]
[350260239,1737748238105,-52915.0,0.00019,2]
[350260240,1737748238210,-2198.46322718,0.00019,2]
[350260412,1737748240019,-65893.4292865,0.00019,2]
[350260414,1737748240030,-857.383839,0.00019,2]
[350260417,1737748240045,-10528.0,0.00019,2]
[350260419,1737748240057,-3302.48047644,0.00019,2]
[350260421,1737748240068,-16866.38392336,0.00019,2]
[350260423,1737748240080,-43730.39528796,0.00019,2]
[350260426,1737748240100,-2070.2,0.00019,2]
[350260428,1737748240111,-3904.7797864,0.00019,2]
[350260441,1737748240227,-530.65,0.00019,2]
[350260636,1737748242997,-1887.24644707,0.00019,2]
[350260637,1737748243092,-26074.6354,0.00019,2]
[350260653,1737748245970,-6901.38931887,0.00019,2]
[350260654,1737748246106,-73.25246364,0.00019,2]
[350260655,1737748246117,-957.6774138,0.00019,2]
[350260656,1737748246236,-849.01415554,0.00019,2]
[350260743,1737748706713,166.87,0.00010137,2]
[350260753,1737749355189,-550.0,0.00015,2]
[350260754,1737749355211,-531.85,0.00015701,2]
[350260755,1737749355232,-1035.0,0.00016164,2]
[350260756,1737749355253,-48822.09428078,0.00017531,2]
[350260757,1737749356138,-3429.90571922,0.00017531,2]
[350260758,1737749356161,-550.0,0.00017591,2]
[350260759,1737749356185,-1000.0,0.00017594,2]
[350260760,1737749356207,-2869.19563878,0.00017605,2]
[350260761,1737749369104,-2162.41914423,0.00017605,2]
[350260762,1737749373097,-8916.82521699,0.00017605,2]
[350260763,1737749373121,-411.39,0.00017613,2]
[350260764,1737749373142,-366.58,0.00017636,2]
[350260765,1737749373162,-227.98,0.00017777,2]
[350260766,1737749373184,-531.85,0.00017965,2]
[350260767,1737749373204,-1212.82383817,0.00017999,2]
[350260771,1737749432211,-250.0,0.00017829,2]
[350260772,1737749432222,-178.24216183,0.00017999,2]
[350260773,1737749432231,-423.65458145,0.00018041,2]
[350260774,1737749432242,-156.57,0.00018046,30]
[350260775,1737749432251,-13420.8,0.00018058,2]
[350260776,1737749432262,-471.64,0.00018141,2]
[350260777,1737749432273,-1550.12,0.00018164,2]
[350260778,1737749432283,-250.0,0.00018413,2]
[350260779,1737749432293,-423.65458145,0.00018421,2]
[350260780,1737749432303,-245.49,0.00018422,2]
[350260781,1737749432313,-251.6,0.00018431,2]
[350260782,1737749432323,-246.82,0.0001845,2]
[350260783,1737749432333,-250.81,0.00018486,2]
[350260784,1737749432343,-150.99,0.00018533,2]
[350260785,1737749432353,-150.99,0.00018533,2]
[350260786,1737749432363,-1635.24,0.00018533,2]
[350260787,1737749432373,-442.38,0.00018533,2]
[350260788,1737749432384,-9999.99,0.00018533,2]
[350260789,1737749432393,-1838.57,0.00018533,2]
[350260790,1737749432408,-7914.76,0.00018533,2]
[350260791,1737749432418,-253.17,0.00018559,2]
[350260792,1737749432428,-227.98,0.00018666,2]
[350260793,1737749432437,-584.0,0.00018681,2]
[350260794,1737749432447,-245.36,0.00018708,2]
[350260795,1737749432457,-423.65458145,0.000188,2]
[350260796,1737749432467,-5415.05188995,0.00018899,2]
[350260797,1737749432487,-2306.69571005,0.00018899,2]
[350260798,1737749432499,-4456.16377439,0.00018899,2]
[350260799,1737749432508,-1995.33227794,0.000189,2]
[350260833,1737749438041,-14095.73942206,0.000189,2]
[350260834,1737749438051,-175.47883036,0.000189,2]
[350260835,1737749438061,-501.4248,0.000189,2]
[350260836,1737749438070,-2972.1067911,0.000189,2]
[350260837,1737749438080,-3389.832359,0.000189,2]
[350260838,1737749438090,-500.0,0.00018986,2]
[350260839,1737749438099,-664.53,0.00018989,2]
[350260840,1737749438109,-500.0,0.00018998,2]
[350260841,1737749438118,-394.372607,0.00018998,2]
[350260842,1737749438128,-500.0,0.00018998,2]
[350260843,1737749438137,-596.33,0.00018998,2]
[350260844,1737749438147,-549.953214,0.00018998,2]
[350260845,1737749438157,-156.439022,0.00018998,2]
[350260846,1737749438167,-500.0,0.00018998,2]
[350260847,1737749438176,-160.737179,0.00018998,2]
[350260848,1737749438185,-500.0,0.00018998,2]
[350260849,1737749438195,-500.0,0.00018998,2]
[350260850,1737749438204,-500.0,0.00018998,2]
[350260851,1737749438214,-500.0,0.00018998,2]
[350260852,1737749438224,-500.0,0.00018998,2]
[350260853,1737749438233,-953.71,0.00018998,2]
[350260854,1737749438243,-500.0,0.00018998,2]
[350260855,1737749438254,-584.2,0.00018998,2]
[350260856,1737749438263,-500.0,0.00018998,2]
[350260857,1737749438273,-500.0,0.00018998,2]
[350260858,1737749438283,-1044.5,0.00018998,2]
[350260859,1737749438292,-500.0,0.00018998,2]
[350260860,1737749438302,-1880.23,0.00018998,2]
[350260861,1737749438312,-500.0,0.00018998,2]
[350260862,1737749438322,-751.4,0.00018998,2]
[350260863,1737749438332,-500.0,0.00018998,2]
[350260864,1737749438342,-500.0,0.00018998,2]
[350260865,1737749438351,-500.0,0.00018998,2]
[350260866,1737749438361,-500.0,0.00018998,2]
[350260867,1737749438371,-714.15,0.00018998,2]
[350260868,1737749438380,-500.0,0.00018998,2]
[350260869,1737749438390,-500.0,0.00018998,2]
[350260870,1737749438405,-555.94,0.00018998,2]
[350260871,1737749438420,-1046.2,0.00018998,2]
[350260873,1737749438430,-500.0,0.00018998,2]
[350260875,1737749438439,-500.0,0.00018998,2]
[350260877,1737749438448,-500.0,0.00018998,2]
[350260879,1737749438457,-500.0,0.00018998,2]
[350260881,1737749438467,-500.0,0.00018998,2]
[350260883,1737749438476,-776.9,0.00018998,2]
[350260885,1737749438485,-1182.96,0.00018998,2]
[350260887,1737749438495,-500.0,0.00018998,2]
[350260889,1737749438508,-500.0,0.00018998,2]
[350260891,1737749438517,-500.0,0.00018998,2]
[350260893,1737749438527,-282.49794428,0.00018998,2]
[350260897,1737749438574,-217.50205572,0.00018998,2]
[350260899,1737749438584,-1431.42,0.00018998,2]
[350260901,1737749438594,-356.58860688,0.00018998,2]
[350261044,1737749440047,-143.41139312,0.00018998,2]
[350261046,1737749440057,-500.0,0.00018998,2]
[350261048,1737749440066,-400.21982688,0.00018998,2]
[350261053,1737749440100,-99.78017312,0.00018998,2]
[350261055,1737749440109,-354.24423541,0.00018998,2]
[350261057,1737749440121,-145.75576459,0.00018998,2]
[350261059,1737749440130,-300.29101843,0.00018998,2]
[350261094,1737749440477,-330.36504212,0.00018998,2]
[350261097,1737749440492,-500.0,0.00018998,2]
[350261099,1737749440510,-500.0,0.00018998,2]
[350261100,1737749440520,-500.0,0.00018998,2]
[350261101,1737749440530,-500.0,0.00018998,2]
[350261102,1737749440540,-500.0,0.00018998,2]
[350261103,1737749440551,-253.83,0.00018999,2]
[350261104,1737749440563,-153.15446795,0.00018999,2]
[350261106,1737749440586,-93.20553205,0.00018999,2]
[350261108,1737749440597,-297.03673595,0.00018999,2]
[350261111,1737749440611,-202.96326405,0.00018999,2]
[350261113,1737749440622,-165.62172352,0.00018999,2]
[350261115,1737749440635,-334.37827648,0.00018999,2]
[350261119,1737749440647,-500.0,0.00018999,2]
[350261121,1737749440661,-199.11081603,0.00018999,2]
[350261124,1737749440685,-300.88918397,0.00018999,2]
[350261126,1737749440696,-505.04378086,0.00018999,2]
[350261129,1737749440707,-38.08126178,0.00018999,2]
[350261131,1737749440720,-311.86012335,0.00018999,2]
[350261330,1737749442991,-500.0,0.00018998,2]
[350261333,1737749443003,-150.05861487,0.00018999,2]
[350261335,1737749443015,-500.0,0.00018999,2]
[350261337,1737749443026,-500.0,0.00018999,2]
[350261339,1737749443036,-500.0,0.00018999,2]
[350261341,1737749443047,-320.07120325,0.00018999,2]
[350261343,1737749443058,-500.0,0.00018999,2]
[350261346,1737749443069,-500.0,0.00018999,2]
[350261348,1737749443080,-265.02473933,0.00018999,2]
[350261350,1737749443090,-500.0,0.00018999,2]
[350261352,1737749443101,-533.75986281,0.00018999,2]
[350261354,1737749443111,-500.0,0.00018999,2]
[350261356,1737749443123,-500.0,0.00018999,2]
[350261359,1737749443134,-500.0,0.00018999,2]
[350261361,1737749443145,-500.0,0.00018999,2]
[350261363,1737749443157,-504.17519906,0.00018999,2]
[350261365,1737749443169,-500.0,0.00018999,2]
[350261366,1737749443180,-500.0,0.00018999,2]
[350261367,1737749443190,-290.0173526,0.00018999,2]
[350261368,1737749443201,-500.0,0.00018999,2]
[350261369,1737749443212,-500.0,0.00018999,2]
[350261370,1737749443223,-500.0,0.00018999,2]
[350261371,1737749443233,-500.0,0.00018999,2]
[350261373,1737749443244,-607.75107455,0.00018999,2]
[350261375,1737749443254,-500.0,0.00018999,2]
[350261377,1737749443266,-500.0,0.00018999,2]
[350261379,1737749443278,-500.0,0.00018999,2]
[350261381,1737749443289,-500.0,0.00018999,2]
[350261383,1737749443301,-500.0,0.00018999,2]
[350261386,1737749443312,-500.0,0.00018999,2]
[350261388,1737749443323,-500.0,0.00018999,2]
[350261390,1737749443335,-500.0,0.00018999,2]
[350261392,1737749443347,-507.67809087,0.00018999,2]
[350261395,1737749443359,-500.0,0.00018999,2]
[350261397,1737749443374,-500.0,0.00018999,2]
[350261399,1737749443385,-500.0,0.00018999,2]
[350261401,1737749443396,-500.0,0.00018999,2]
[350261403,1737749443408,-500.0,0.00018999,2]
[350261405,1737749443419,-566.29397585,0.00018999,2]
[350261407,1737749443429,-500.0,0.00018999,2]
[350261410,1737749443439,-500.0,0.00018999,2]
[350261412,1737749443449,-500.0,0.00018999,2]
[350261414,1737749443459,-500.0,0.00018999,2]
[350261416,1737749443468,-501.37186095,0.00018999,2]
[350261418,1737749443478,-500.0,0.00018999,2]
[350261420,1737749443488,-500.0,0.00018999,2]
[350261422,1737749443500,-500.0,0.00018999,2]
[350261424,1737749443511,-500.0,0.00018999,2]
[350261426,1737749443520,-1792.25,0.00018999,2]
[350261428,1737749443530,-500.0,0.00018999,2]
[350261451,1737749443540,-500.0,0.00018999,2]
[350261454,1737749443764,-371.13026886,0.00018999,2]
[350261458,1737749443794,-101.94157436,0.00018999,2]
[350261461,1737749443807,-500.0,0.00018999,2]
[350261463,1737749443816,-500.0,0.00018999,2]
[350261464,1737749443825,-508.79731797,0.00018999,2]
[350261466,1737749443835,-434.52773271,0.00018999,2]
[350261669,1737749445975,-500.0,0.00018998,2]
[350261671,1737749445985,-500.0,0.00018998,2]
[350261673,1737749445995,-253.3,0.00018999,2]
[350261675,1737749446004,-65.47226729,0.00018999,2]
[350261677,1737749446013,-92.643871,0.00018999,2]
[350261696,1737749446186,-407.356129,0.00018999,2]
[350261698,1737749446196,-439.64917689,0.00018999,2]
[350261818,1737750268441,201.77,0.0002,90]
[350261830,1737750420327,163.64,0.00010137,2]
[350261835,1737750448103,-186.93898746,0.00016105,2]
[350261848,1737750546102,-275.77712814,0.00016105,2]